{"text_format":"3","workbook":"xlsx","n_sheets":1,"sheets":["Расчет кредита"],"not_rendered":{"defined_names":9},"read":"whole","date_system":"1900"}

{"sheet":"Расчет кредита","index":0,"n_rows":22,"n_cols":13,"rows_kept":22,"merged":[[1,1,1,3],[1,6,2,8],[1,11,2,12],[2,1,2,3],[6,5,6,6],[7,5,7,6],[10,2,10,5],[10,6,10,8],[10,9,10,12],[18,2,18,12]]}
[]
[null,"РАСЧЕТ КРЕДИТА ",{"$nulls":4},{"v":50000,"d":"50,000.00р."},{"$nulls":4},"2011-05-10"]
[null,"НА ОБУЧЕНИЕ "]
[]
[null," Рекомендуется, чтобы ваша общая сумма ежемесячных погашений кредита на обучение не превышала 8% от зарплаты за первый год."]
[]
[null,null,"Ваш комбинированный текущий ежемесячный платеж составляет:",null,null,{"v":328.58590726058833,"d":"328.59р."},null,null,"Ваш комбинированный плановый ежемесячный платеж составляет:",{"$nulls":3},{"v":328.58590726058833,"d":"328.59р."}]
[null,null,"Процент от ежемесячного дохода:",null,null,{"$f":"КредитыНаОбучение[[#Totals],[Текущий ежемесячный платеж]]/ОжидаемыйЕжемесячныйДоход","v":{"v":0.07886061774254119,"d":"7.89%"}},null,null,"Процент от ежемесячного дохода:",{"$nulls":3},{"$f":"КредитыНаОбучение[[#Totals],[Запланированные платежи]]/ОжидаемыйЕжемесячныйДоход","v":{"v":0.07886061774254119,"d":"7.89%"}}]
[]
[]
[null,null,"ОБЩИЕ СВЕДЕНИЯ О КРЕДИТЕ",{"$nulls":3},"ДАННЫЕ ПОГАШЕНИЯ КРЕДИТА",null,null,"ДАННЫЕ ПО ПЛАТЕЖАМ"]
[null,null,"№ кредита","Кредитор","Сумма кредита","Годовая процентная ставка","Начальная дата","Продолжительность (годы)","Конечная дата","Текущий ежемесячный платеж","Общая сумма процентов","Запланированные платежи","Ежегодный платеж"]
[null,null,"10998M88","Кредитор 1",{"v":10000,"d":"10,000.00р."},{"v":0.05,"d":"5.00%"},"2011-04-01",10,{"$f":"IF(AND(КредитыНаОбучение[[#This Row],[Начальная дата]]>0,КредитыНаОбучение[[#This Row],[Продолжительность (годы)]]>0),EDATE(КредитыНаОбучение[[#This Row],[Начальная дата]],КредитыНаОбучение[[#This Row],[Продолжительность (годы)]]*12),\"\")","v":"2021-04-01"},{"$f":"IF(AND(ВыплатаНачинаетсяСегодня,COUNT(КредитыНаОбучение[[#This Row],[Сумма кредита]:[Продолжительность (годы)]])=4,КредитыНаОбучение[[#This Row],[Начальная дата]]<TODAY()),PMT(КредитыНаОбучение[[#This Row],[Годовая процентная ставка]]/12,КредитыНаОбучение[[#This Row],[Продолжительность (годы)]]*12,-КредитыНаОбучение[[#This Row],[Сумма кредита]],0,0),\"\")","v":{"v":106.06551523907524,"d":"106.07р."}},{"$f":"IFERROR((КредитыНаОбучение[[#This Row],[Запланированные платежи]]*(КредитыНаОбучение[[#This Row],[Продолжительность (годы)]]*12))-КредитыНаОбучение[[#This Row],[Сумма кредита]],\"\")","v":{"v":2727.8618286890287,"d":"2,727.86р."}},{"$f":"IF(COUNTA(КредитыНаОбучение[[#This Row],[Сумма кредита]:[Продолжительность (годы)]])<>4,\"\",PMT(КредитыНаОбучение[[#This Row],[Годовая процентная ставка]]/12,КредитыНаОбучение[[#This Row],[Продолжительность (годы)]]*12,-КредитыНаОбучение[[#This Row],[Сумма кредита]],0,0))","v":{"v":106.06551523907524,"d":"106.07р."}},{"$f":"IFERROR(КредитыНаОбучение[[#This Row],[Запланированные платежи]]*12,\"\")","v":{"v":1272.7861828689029,"d":"1,272.79р."}}]
[null,null,"20987N87","Кредитор 2",{"v":8000,"d":"8,000.00р."},{"v":0.05,"d":"5.00%"},"2011-05-01",10,{"$f":"IF(AND(КредитыНаОбучение[[#This Row],[Начальная дата]]>0,КредитыНаОбучение[[#This Row],[Продолжительность (годы)]]>0),EDATE(КредитыНаОбучение[[#This Row],[Начальная дата]],КредитыНаОбучение[[#This Row],[Продолжительность (годы)]]*12),\"\")","v":"2021-05-01"},{"$f":"IF(AND(ВыплатаНачинаетсяСегодня,COUNT(КредитыНаОбучение[[#This Row],[Сумма кредита]:[Продолжительность (годы)]])=4,КредитыНаОбучение[[#This Row],[Начальная дата]]<TODAY()),PMT(КредитыНаОбучение[[#This Row],[Годовая процентная ставка]]/12,КредитыНаОбучение[[#This Row],[Продолжительность (годы)]]*12,-КредитыНаОбучение[[#This Row],[Сумма кредита]],0,0),\"\")","v":{"v":84.85241219126019,"d":"84.85р."}},{"$f":"IFERROR((КредитыНаОбучение[[#This Row],[Запланированные платежи]]*(КредитыНаОбучение[[#This Row],[Продолжительность (годы)]]*12))-КредитыНаОбучение[[#This Row],[Сумма кредита]],\"\")","v":{"v":2182.289462951223,"d":"2,182.29р."}},{"$f":"IF(COUNTA(КредитыНаОбучение[[#This Row],[Сумма кредита]:[Продолжительность (годы)]])<>4,\"\",PMT(КредитыНаОбучение[[#This Row],[Годовая процентная ставка]]/12,КредитыНаОбучение[[#This Row],[Продолжительность (годы)]]*12,-КредитыНаОбучение[[#This Row],[Сумма кредита]],0,0))","v":{"v":84.85241219126019,"d":"84.85р."}},{"$f":"IFERROR(КредитыНаОбучение[[#This Row],[Запланированные платежи]]*12,\"\")","v":{"v":1018.2289462951222,"d":"1,018.23р."}}]
[null,null,"36785LM","Кредитор 3",{"v":6000,"d":"6,000.00р."},{"v":0.045,"d":"4.50%"},"2012-03-01",10,{"$f":"IF(AND(КредитыНаОбучение[[#This Row],[Начальная дата]]>0,КредитыНаОбучение[[#This Row],[Продолжительность (годы)]]>0),EDATE(КредитыНаОбучение[[#This Row],[Начальная дата]],КредитыНаОбучение[[#This Row],[Продолжительность (годы)]]*12),\"\")","v":"2022-03-01"},{"$f":"IF(AND(ВыплатаНачинаетсяСегодня,COUNT(КредитыНаОбучение[[#This Row],[Сумма кредита]:[Продолжительность (годы)]])=4,КредитыНаОбучение[[#This Row],[Начальная дата]]<TODAY()),PMT(КредитыНаОбучение[[#This Row],[Годовая процентная ставка]]/12,КредитыНаОбучение[[#This Row],[Продолжительность (годы)]]*12,-КредитыНаОбучение[[#This Row],[Сумма кредита]],0,0),\"\")","v":{"v":62.18304525420918,"d":"62.18р."}},{"$f":"IFERROR((КредитыНаОбучение[[#This Row],[Запланированные платежи]]*(КредитыНаОбучение[[#This Row],[Продолжительность (годы)]]*12))-КредитыНаОбучение[[#This Row],[Сумма кредита]],\"\")","v":{"v":1461.9654305051017,"d":"1,461.97р."}},{"$f":"IF(COUNTA(КредитыНаОбучение[[#This Row],[Сумма кредита]:[Продолжительность (годы)]])<>4,\"\",PMT(КредитыНаОбучение[[#This Row],[Годовая процентная ставка]]/12,КредитыНаОбучение[[#This Row],[Продолжительность (годы)]]*12,-КредитыНаОбучение[[#This Row],[Сумма кредита]],0,0))","v":{"v":62.18304525420918,"d":"62.18р."}},{"$f":"IFERROR(КредитыНаОбучение[[#This Row],[Запланированные платежи]]*12,\"\")","v":{"v":746.1965430505102,"d":"746.20р."}}]
[null,null,"765R43","Кредитор 4",{"v":4000,"d":"4,000.00р."},{"v":0.05,"d":"5.00%"},"2012-05-01",5,{"$f":"IF(AND(КредитыНаОбучение[[#This Row],[Начальная дата]]>0,КредитыНаОбучение[[#This Row],[Продолжительность (годы)]]>0),EDATE(КредитыНаОбучение[[#This Row],[Начальная дата]],КредитыНаОбучение[[#This Row],[Продолжительность (годы)]]*12),\"\")","v":"2017-05-01"},{"$f":"IF(AND(ВыплатаНачинаетсяСегодня,COUNT(КредитыНаОбучение[[#This Row],[Сумма кредита]:[Продолжительность (годы)]])=4,КредитыНаОбучение[[#This Row],[Начальная дата]]<TODAY()),PMT(КредитыНаОбучение[[#This Row],[Годовая процентная ставка]]/12,КредитыНаОбучение[[#This Row],[Продолжительность (годы)]]*12,-КредитыНаОбучение[[#This Row],[Сумма кредита]],0,0),\"\")","v":{"v":75.48493457604374,"d":"75.48р."}},{"$f":"IFERROR((КредитыНаОбучение[[#This Row],[Запланированные платежи]]*(КредитыНаОбучение[[#This Row],[Продолжительность (годы)]]*12))-КредитыНаОбучение[[#This Row],[Сумма кредита]],\"\")","v":{"v":529.0960745626244,"d":"529.10р."}},{"$f":"IF(COUNTA(КредитыНаОбучение[[#This Row],[Сумма кредита]:[Продолжительность (годы)]])<>4,\"\",PMT(КредитыНаОбучение[[#This Row],[Годовая процентная ставка]]/12,КредитыНаОбучение[[#This Row],[Продолжительность (годы)]]*12,-КредитыНаОбучение[[#This Row],[Сумма кредита]],0,0))","v":{"v":75.48493457604374,"d":"75.48р."}},{"$f":"IFERROR(КредитыНаОбучение[[#This Row],[Запланированные платежи]]*12,\"\")","v":{"v":905.8192149125249,"d":"905.82р."}}]
[null,null,"Итого",null,{"$f":"SUBTOTAL(109,КредитыНаОбучение[Сумма кредита])","v":{"v":28000,"d":"28,000.00р."}},{"$nulls":4},{"$f":"SUBTOTAL(109,КредитыНаОбучение[Текущий ежемесячный платеж])","v":{"v":328.58590726058833,"d":"328.59р."}},{"$f":"SUBTOTAL(109,КредитыНаОбучение[Общая сумма процентов])","v":{"v":6901.212796707978,"d":"6,901.21р."}},{"$f":"SUBTOTAL(109,КредитыНаОбучение[Запланированные платежи])","v":{"v":328.58590726058833,"d":"328.59р."}},{"$f":"SUBTOTAL(109,КредитыНаОбучение[Ежегодный платеж])","v":{"v":3943.03088712706,"d":"3,943.03р."}}]
[null,null,"Среднее",null,{"$f":"AVERAGE(КредитыНаОбучение[Сумма кредита])","v":{"v":7000,"d":"7,000.00р."}},{"$f":"AVERAGE(КредитыНаОбучение[Годовая процентная ставка])","v":{"v":0.04875,"d":"4.88%"}},{"$nulls":4},{"$f":"AVERAGE(КредитыНаОбучение[Общая сумма процентов])","v":{"v":1725.3031991769944,"d":"1,725.30р."}},null,{"$f":"AVERAGE(КредитыНаОбучение[Ежегодный платеж])","v":{"v":985.757721781765,"d":"985.76р."}}]
[]
[{"$nulls":10},"Общая сумма погашения кредита:",null,{"v":34901.21279670798,"d":"34,901.21р."}]
[]
[{"$nulls":10},"Ожидаемый ежемесячный доход после окончания обучения:",null,{"$f":"(ОжидаемыйЕжегодныйДоход/12)","v":{"v":4166.666666666667,"d":"4,166.67р."}}]